[Event "IV Elllobregat Open Chess Tmnt"]
[Site "Sant Boi de Llobregat, Spain"]
[Date "2023.12.03"]
[Round "4.8"]
[White "Sethuraman, S.P."]
[Black "Khademalsharieh, Sarasadat"]
[Result "0-1"]
[TimeControl "90min/40moves + 15min/end + 30sec from move 1"]
[WhiteFideId "5021596"]
[BlackFideId "12512214"]
[WhiteElo "2603"]
[BlackElo "2481"]

1. c4 {[%clk 01:30:50]} {[%emt 00:00:09]} e6 {[%clk 01:30:46]} {[%emt
00:00:15]} 2. Nc3 {[%clk 01:31:12]} {[%emt 00:00:07]} d5 {[%clk 01:30:14]}
{[%emt 00:01:02]} 3. d4 {[%clk 01:31:34]} {[%emt 00:00:07]} Bb4 {[%clk
01:27:57]} {[%emt 00:02:48]} 4. cxd5 {[%clk 01:31:23]} {[%emt 00:00:41]} exd5
{[%clk 01:28:15]} {[%emt 00:00:13]} 5. Bf4 {[%clk 01:31:46]} {[%emt 00:00:06]}
Nf6 {[%clk 01:27:26]} {[%emt 00:01:19]} 6. e3 {[%clk 01:32:05]} {[%emt
00:00:10]} O-O {[%clk 01:27:10]} {[%emt 00:00:47]} 7. Bd3 {[%clk 01:30:46]}
{[%emt 00:01:49]} c5 {[%clk 01:21:27]} {[%emt 00:06:14]} 8. Nge2 {[%clk
01:25:14]} {[%emt 00:06:01]} cxd4 {[%clk 01:18:22]} {[%emt 00:03:35]} 9. Nxd4
{[%clk 01:17:59]} {[%emt 00:07:44]} Nc6 {[%clk 01:14:01]} {[%emt 00:04:52]} 10.
Nxc6 {[%clk 01:17:35]} {[%emt 00:00:54]} Bxc3+ {[%clk 01:13:28]} {[%emt
00:01:03]} 11. bxc3 {[%clk 01:17:59]} {[%emt 00:00:06]} bxc6 {[%clk 01:13:55]}
{[%emt 00:00:04]} 12. Qa4 {[%clk 00:59:22]} {[%emt 00:19:06]} c5 {[%clk
00:53:55]} {[%emt 00:20:31]} 13. O-O {[%clk 00:58:49]} {[%emt 00:01:02]} Bd7
{[%clk 00:41:27]} {[%emt 00:12:58]} 14. Qa3 {[%clk 00:51:44]} {[%emt 00:07:35]}
c4 {[%clk 00:39:22]} {[%emt 00:02:36]} 15. Bc2 {[%clk 00:51:31]} {[%emt
00:00:42]} Qc8 {[%clk 00:37:15]} {[%emt 00:02:38]} 16. Rab1 {[%clk 00:42:15]}
{[%emt 00:09:45]} Bf5 {[%clk 00:36:45]} {[%emt 00:01:00]} 17. Bxf5 {[%clk
00:41:51]} {[%emt 00:00:53]} Qxf5 {[%clk 00:37:10]} {[%emt 00:00:06]} 18. Rb7
{[%clk 00:42:14]} {[%emt 00:00:07]} Qd3 {[%clk 00:30:32]} {[%emt 00:07:09]} 19.
Be5 {[%clk 00:26:18]} {[%emt 00:16:26]} Ng4 {[%clk 00:26:18]} {[%emt 00:04:44]}
20. Bg3 {[%clk 00:24:56]} {[%emt 00:01:52]} Rfe8 {[%clk 00:23:34]} {[%emt
00:03:15]} 21. Qc1 {[%clk 00:18:36]} {[%emt 00:06:49]} Nf6 {[%clk 00:21:49]}
{[%emt 00:02:15]} 22. Rd1 {[%clk 00:16:53]} {[%emt 00:02:12]} Qf5 {[%clk
00:22:04]} {[%emt 00:00:16]} 23. Qb2 {[%clk 00:13:17]} {[%emt 00:04:05]} h5
{[%clk 00:21:15]} {[%emt 00:01:19]} 24. Rd4 {[%clk 00:08:34]} {[%emt 00:05:13]}
a6 {[%clk 00:18:34]} {[%emt 00:03:12]} 25. Rf4 {[%clk 00:06:55]} {[%emt
00:02:08]} Qd3 {[%clk 00:16:43]} {[%emt 00:02:22]} 26. Rd4 {[%clk 00:05:53]}
{[%emt 00:01:32]} Qf5 {[%clk 00:17:03]} {[%emt 00:00:09]} 27. Rf4 {[%clk
00:02:35]} {[%emt 00:03:49]} Qd3 {[%clk 00:16:23]} {[%emt 00:01:11]} 28. Rd4
{[%clk 00:01:42]} {[%emt 00:01:23]} Qf5 {[%clk 00:16:22]} {[%emt 00:00:29]} 29.
Bf4 {[%clk 00:01:08]} {[%emt 00:01:05]} Ne4 {[%clk 00:13:44]} {[%emt 00:03:08]}
30. Qc2 {[%clk 00:01:23]} {[%emt 00:00:15]} g5 {[%clk 00:13:16]} {[%emt
00:00:58]} 31. f3 {[%clk 00:01:49]} {[%emt 00:00:04]} gxf4 {[%clk 00:12:22]}
{[%emt 00:01:25]} 32. fxe4 {[%clk 00:02:11]} {[%emt 00:00:07]} Rxe4 {[%clk
00:11:59]} {[%emt 00:00:52]} 33. Rd1 {[%clk 00:00:51]} {[%emt 00:01:50]} fxe3
{[%clk 00:11:39]} {[%emt 00:00:51]} 34. Rf1 {[%clk 00:01:17]} {[%emt 00:00:04]}
Qg6 {[%clk 00:09:13]} {[%emt 00:02:56]} 35. Qe2 {[%clk 00:01:31]} {[%emt
00:00:16]} f5 {[%clk 00:05:26]} {[%emt 00:04:18]} 36. Rd7 {[%clk 00:00:49]}
{[%emt 00:01:11]} Qg4 {[%clk 00:03:18]} {[%emt 00:02:38]} 37. Rf3 {[%clk
00:01:07]} {[%emt 00:00:12]} f4 {[%clk 00:02:52]} {[%emt 00:00:56]} 38. Rxd5
{[%clk 00:01:33]} {[%emt 00:00:04]} Rb8 {[%clk 00:03:01]} {[%emt 00:00:21]} 39.
h3 {[%clk 00:01:38]} {[%emt 00:00:25]} Qg6 {[%clk 00:03:16]} {[%emt 00:00:15]}
40. h4 {[%clk 00:16:22]} {[%emt 00:00:46]} Rb5 {[%clk 00:18:12]} {[%emt
00:00:35]} 41. Rd8+ {[%clk 00:15:48]} {[%emt 00:01:03]} Kg7 {[%clk 00:17:28]}
{[%emt 00:01:14]} 42. Rd7+ {[%clk 00:10:12]} {[%emt 00:06:05]} Kh6 {[%clk
00:17:26]} {[%emt 00:00:32]} 43. Rf1 {[%clk 00:10:38]} {[%emt 00:00:04]} Qg4
{[%clk 00:16:27]} {[%emt 00:01:30]} 44. Qc2 {[%clk 00:10:47]} {[%emt 00:00:21]}
Rbe5 {[%clk 00:13:26]} {[%emt 00:03:30]} 45. Qd1 {[%clk 00:04:41]} {[%emt
00:06:34]} Re6 {[%clk 00:09:52]} {[%emt 00:04:05]} 46. Re1 {[%clk 00:01:05]}
{[%emt 00:04:06]} Rg6 {[%clk 00:07:37]} {[%emt 00:02:45]} 47. Qxg4 {[%clk
00:00:59]} {[%emt 00:00:36]} hxg4 {[%clk 00:08:03]} {[%emt 00:00:04]} 48. Rf7
{[%clk 00:01:27]} {[%emt 00:00:02]} Rd6 {[%clk 00:07:08]} {[%emt 00:01:25]} 49.
Rb1 {[%clk 00:01:39]} {[%emt 00:00:18]} Kh5 {[%clk 00:04:58]} {[%emt 00:02:41]}
50. Rh7+ {[%clk 00:01:10]} {[%emt 00:00:59]} Kg6 {[%clk 00:05:23]} {[%emt
00:00:04]} 51. Rbb7 {[%clk 00:01:36]} {[%emt 00:00:04]} e2 {[%clk 00:02:16]}
{[%emt 00:03:38]} 52. Rbg7+ {[%clk 00:01:37]} {[%emt 00:00:29]} Kf5 {[%clk
00:02:39]} {[%emt 00:00:07]} 53. Rg5+ {[%clk 00:01:40]} {[%emt 00:00:26]} Ke6
{[%clk 00:03:04]} {[%emt 00:00:06]} 54. Rh6+ {[%clk 00:01:42]} {[%emt
00:00:28]} Kd7 {[%clk 00:03:29]} {[%emt 00:00:05]} 55. Rg7+ {[%clk 00:01:24]}
{[%emt 00:00:47]} Kc6 {[%clk 00:03:51]} {[%emt 00:00:09]} 0-1

[Event "IV Elllobregat Open Chess Tmnt"]
[Site "Sant Boi de Llobregat, Spain"]
[Date "2023.12.03"]
[Round "4.9"]
[White "Aditya, Mittal"]
[Black "Stoyanov, Tsvetan"]
[Result "1-0"]
[TimeControl "90min/40moves + 15min/end + 30sec from move 1"]
[WhiteFideId "35042025"]
[BlackFideId "2917173"]
[WhiteElo "2577"]
[BlackElo "2458"]

1. d4 {[%clk 01:30:59]} {[%emt 00:00:01]} d5 {[%clk 01:30:47]} {[%emt
00:00:13]} 2. c4 {[%emt 00:00:17]} dxc4 {[%clk 01:31:01]} 3. e4 {[%clk
01:31:37]} {[%emt 00:00:21]} e5 {[%clk 01:28:31]} {[%emt 00:02:59]} 4. Nf3
{[%clk 01:32:05]} {[%emt 00:00:02]} Bb4+ {[%clk 01:28:49]} {[%emt 00:00:12]} 5.
Nc3 {[%clk 01:32:33]} {[%emt 00:00:02]} exd4 {[%clk 01:29:04]} {[%emt
00:00:15]} 6. Nxd4 {[%clk 01:32:38]} {[%emt 00:00:26]} Nd7 {[%clk 01:29:05]}
{[%emt 00:00:29]} 7. Bxc4 {[%clk 01:33:00]} {[%emt 00:00:08]} Ngf6 {[%clk
01:29:26]} {[%emt 00:00:09]} 8. O-O {[%clk 01:33:08]} {[%emt 00:00:22]} O-O
{[%clk 01:29:49]} {[%emt 00:00:07]} 9. f3 {[%clk 01:32:35]} {[%emt 00:01:03]}
Ne5 {[%clk 01:29:47]} {[%emt 00:00:32]} 10. Be2 {[%clk 01:32:32]} {[%emt
00:00:33]} Qe7 {[%clk 01:29:45]} {[%emt 00:00:32]} 11. Bg5 {[%clk 01:24:51]}
{[%emt 00:08:11]} Bxc3 {[%clk 01:29:53]} {[%emt 00:00:22]} 12. bxc3 {[%clk
01:25:12]} {[%emt 00:00:10]} c5 {[%clk 01:29:35]} {[%emt 00:00:48]} 13. Nb3
{[%clk 01:18:24]} {[%emt 00:07:18]} Ng6 {[%clk 01:29:38]} {[%emt 00:00:26]} 14.
Qc2 {[%clk 01:15:40]} {[%emt 00:03:15]} b6 {[%clk 01:25:43]} {[%emt 00:04:25]}
15. Rfe1 {[%clk 01:13:55]} {[%emt 00:02:14]} Bb7 {[%clk 01:05:32]} {[%emt
00:20:41]} 16. Bf1 {[%clk 01:13:44]} {[%emt 00:00:41]} Qe5 {[%clk 01:01:16]}
{[%emt 00:04:46]} 17. Be3 {[%clk 01:13:29]} {[%emt 00:00:45]} h5 {[%clk
00:52:41]} {[%emt 00:09:05]} 18. Nd2 {[%clk 01:04:49]} {[%emt 00:09:11]} h4
{[%clk 00:41:55]} {[%emt 00:11:16]} 19. Nc4 {[%clk 01:04:52]} {[%emt 00:00:28]}
Qe6 {[%clk 00:40:02]} {[%emt 00:02:23]} 20. Rad1 {[%clk 01:00:48]} {[%emt
00:04:34]} Rfd8 {[%clk 00:34:13]} {[%emt 00:06:19]} 21. Bg5 {[%clk 00:55:38]}
{[%emt 00:05:40]} Ba6 {[%clk 00:23:12]} {[%emt 00:11:31]} 22. Qb3 {[%clk
00:52:30]} {[%emt 00:03:38]} Rxd1 {[%clk 00:16:08]} {[%emt 00:07:34]} 23. Rxd1
{[%clk 00:52:50]} {[%emt 00:00:10]} h3 {[%clk 00:09:33]} {[%emt 00:07:06]} 24.
g3 {[%clk 00:44:39]} {[%emt 00:08:41]} Nxe4 {[%clk 00:05:03]} {[%emt 00:04:59]}
25. fxe4 {[%clk 00:44:36]} {[%emt 00:00:33]} Qg4 {[%clk 00:05:28]} {[%emt
00:00:05]} 26. Bc1 {[%clk 00:37:13]} {[%emt 00:07:53]} Bxc4 {[%clk 00:03:49]}
{[%emt 00:02:09]} 27. Bxc4 {[%clk 00:37:35]} Ne5 {[%clk 00:04:16]} {[%emt
00:00:10]} 28. Rf1 {[%clk 00:27:45]} {[%emt 00:10:21]} Nf3+ {[%clk 00:03:14]}
{[%emt 00:01:32]} 29. Kh1 {[%clk 00:27:31]} {[%emt 00:00:42]} Nd2 {[%clk
00:01:29]} {[%emt 00:02:16]} 30. Bxf7+ {[%clk 00:27:24]} {[%emt 00:00:37]} Kh7
{[%clk 00:01:50]} {[%emt 00:00:10]} 31. Rf4 {[%clk 00:27:10]} {[%emt 00:00:44]}
Qxf4 {[%clk 00:01:50]} {[%emt 00:00:29]} 32. gxf4 {[%clk 00:27:35]} {[%emt
00:00:05]} Nxb3 {[%clk 00:02:15]} {[%emt 00:00:05]} 33. Bxb3 {[%clk 00:27:06]}
{[%emt 00:00:59]} c4 {[%clk 00:01:32]} {[%emt 00:01:13]} 34. Bc2 {[%clk
00:27:10]} {[%emt 00:00:26]} b5 {[%clk 00:01:26]} {[%emt 00:00:36]} 35. e5+
{[%clk 00:24:59]} {[%emt 00:02:41]} g6 {[%clk 00:01:26]} {[%emt 00:00:30]} 36.
Kg1 {[%clk 00:23:32]} {[%emt 00:01:57]} a5 {[%clk 00:01:20]} {[%emt 00:00:37]}
37. Kf2 {[%clk 00:23:11]} {[%emt 00:00:50]} b4 {[%clk 00:00:54]} {[%emt
00:00:56]} 38. Ke3 {[%clk 00:21:40]} {[%emt 00:02:01]} Rb8 {[%clk 00:01:04]}
{[%emt 00:00:20]} 39. Ba4 {[%clk 00:20:33]} {[%emt 00:01:36]} Kg7 {[%clk
00:01:11]} {[%emt 00:00:23]} 40. Bb2 {[%clk 00:29:15]} {[%emt 00:06:49]} Kf8
{[%clk 00:15:32]} {[%emt 00:01:09]} 41. Bd7 {[%clk 00:22:52]} {[%emt 00:06:52]}
Ke7 {[%clk 00:14:52]} {[%emt 00:01:09]} 42. e6 {[%clk 00:22:55]} {[%emt
00:00:28]} Ra8 {[%clk 00:00:36]} {[%emt 00:14:47]} 43. a3 {[%clk 00:22:08]}
{[%emt 00:01:17]} b3 {[%clk 00:00:31]} {[%emt 00:00:35]} 44. a4 {[%clk
00:22:28]} {[%emt 00:00:10]} Ra6 {[%clk 00:00:34]} {[%emt 00:00:27]} 45. Kd4
{[%clk 00:21:21]} {[%emt 00:01:37]} Rd6+ {[%clk 00:00:33]} {[%emt 00:00:32]} 46.
Kxc4 {[%clk 00:21:45]} {[%emt 00:00:06]} Rd2 {[%clk 00:00:56]} {[%emt
00:00:07]} 47. Ba3+ {[%clk 00:21:53]} {[%emt 00:00:22]} Kd8 {[%clk 00:00:43]}
{[%emt 00:00:42]} 48. Bb5 {[%clk 00:21:56]} {[%emt 00:00:27]} 1-0

[Event "IV Elllobregat Open Chess Tmnt"]
[Site "Sant Boi de Llobregat, Spain"]
[Date "2023.12.03"]
[Round "4.10"]
[White "Asadli, Vugar"]
[Black "Koelle, Tobias"]
[Result "1/2-1/2"]
[TimeControl "90min/40moves + 15min/end + 30sec from move 1"]
[WhiteFideId "13405764"]
[BlackFideId "16207378"]
[WhiteElo "2562"]
[BlackElo "2453"]

1. e4 {[%clk 01:30:47]} {[%emt 00:00:13]} c5 {[%clk 01:30:53]} {[%emt
00:00:07]} 2. Nf3 {[%clk 01:31:10]} {[%emt 00:00:07]} Nc6 {[%clk 01:31:13]}
{[%emt 00:00:10]} 3. d4 {[%clk 01:31:27]} {[%emt 00:00:13]} cxd4 {[%clk
01:31:38]} {[%emt 00:00:05]} 4. Nxd4 {[%clk 01:31:54]} {[%emt 00:00:04]} Nf6
{[%clk 01:32:02]} {[%emt 00:00:05]} 5. Nc3 {[%clk 01:32:15]} {[%emt 00:00:09]}
e5 {[%clk 01:32:27]} {[%emt 00:00:05]} 6. Ndb5 {[%clk 01:32:29]} {[%emt
00:00:16]} d6 {[%clk 01:32:51]} {[%emt 00:00:05]} 7. Nd5 {[%clk 01:32:43]}
{[%emt 00:00:17]} Nxd5 {[%clk 01:33:15]} {[%emt 00:00:06]} 8. exd5 {[%clk
01:33:09]} {[%emt 00:00:04]} Nb8 {[%clk 01:33:39]} {[%emt 00:00:05]} 9. Qf3
{[%clk 01:31:30]} {[%emt 00:02:09]} a6 {[%clk 01:33:51]} {[%emt 00:00:18]} 10.
Qa3 {[%clk 01:31:35]} {[%emt 00:00:26]} Be7 {[%clk 01:34:15]} {[%emt 00:00:05]}
11. Bg5 {[%clk 01:31:28]} {[%emt 00:00:37]} f6 {[%clk 01:34:39]} {[%emt
00:00:06]} 12. Bd2 {[%clk 01:31:54]} {[%emt 00:00:04]} O-O {[%clk 01:35:04]}
{[%emt 00:00:05]} 13. Bb4 {[%clk 01:32:03]} {[%emt 00:00:22]} Qd7 {[%clk
01:34:58]} {[%emt 00:00:35]} 14. O-O-O {[%clk 01:29:41]} {[%emt 00:02:52]} Rd8
{[%clk 01:35:16]} {[%emt 00:00:12]} 15. Rg1 {[%clk 01:25:23]} {[%emt 00:04:48]}
b6 {[%clk 01:32:59]} {[%emt 00:02:47]} 16. Bd2 {[%clk 01:22:32]} {[%emt
00:03:21]} Qb7 {[%clk 01:26:16]} {[%emt 00:07:11]} 17. Nc3 {[%clk 01:21:01]}
{[%emt 00:02:02]} b5 {[%clk 01:19:04]} {[%emt 00:07:42]} 18. Ne4 {[%clk
01:11:56]} {[%emt 00:09:36]} Bf5 {[%clk 00:58:18]} {[%emt 00:21:15]} 19. Bd3
{[%clk 01:01:34]} {[%emt 00:10:52]} Bg6 {[%clk 00:56:51]} {[%emt 00:01:55]} 20.
Ba5 {[%clk 00:58:06]} {[%emt 00:04:00]} Rc8 {[%clk 00:31:44]} {[%emt 00:25:36]}
21. Nxd6 {[%clk 00:48:42]} {[%emt 00:09:55]} Bxd3 {[%clk 00:24:58]} {[%emt
00:07:16]} 22. Rxd3 {[%clk 00:41:56]} {[%emt 00:07:17]} Qd7 {[%clk 00:25:15]}
{[%emt 00:00:12]} 23. Bb4 {[%clk 00:36:58]} {[%emt 00:05:29]} a5 {[%clk
00:20:53]} {[%emt 00:04:53]} 24. Nxc8 {[%clk 00:34:06]} {[%emt 00:03:21]} Bxb4
{[%clk 00:20:59]} {[%emt 00:00:23]} 25. Qb3 {[%clk 00:32:40]} {[%emt 00:01:57]}
Qxc8 {[%clk 00:21:18]} {[%emt 00:00:11]} 26. d6+ {[%clk 00:32:23]} {[%emt
00:00:48]} Kf8 {[%clk 00:08:11]} {[%emt 00:13:36]} 27. a3 {[%clk 00:25:39]}
{[%emt 00:07:15]} Bc5 {[%clk 00:08:39]} {[%emt 00:00:01]} 28. Qxb5 {[%clk
00:26:04]} {[%emt 00:00:05]} Bxf2 {[%clk 00:07:08]} {[%emt 00:02:00]} 29. Rc3
{[%clk 00:11:05]} {[%emt 00:15:30]} Qa6 {[%clk 00:06:18]} {[%emt 00:01:19]} 30.
Qxa6 {[%clk 00:11:02]} {[%emt 00:00:33]} 1/2-1/2

[Event "IV Elllobregat Open Chess Tmnt"]
[Site "Sant Boi de Llobregat, Spain"]
[Date "2023.12.03"]
[Round "4.11"]
[White "Raja, Rithvik R"]
[Black "Jacobson, Brandon"]
[Result "0-1"]
[TimeControl "90min/40moves + 15min/end + 30sec from move 1"]
[WhiteFideId "35007394"]
[BlackFideId "30901561"]
[WhiteElo "2495"]
[BlackElo "2538"]

1. d4 {[%clk 01:30:56]} {[%emt 00:00:04]} Nf6 {[%clk 01:28:58]} {[%emt
00:01:57]} 2. c4 {[%clk 01:30:24]} {[%emt 00:01:07]} e6 {[%clk 01:28:55]}
{[%emt 00:00:33]} 3. Nf3 {[%clk 01:30:03]} {[%emt 00:00:51]} d5 {[%clk
01:29:08]} {[%emt 00:00:16]} 4. Nc3 {[%clk 01:27:09]} {[%emt 00:03:25]} Nbd7
{[%clk 01:28:51]} {[%emt 00:00:47]} 5. Bf4 {[%clk 01:26:36]} {[%emt 00:01:03]}
Bb4 {[%clk 01:27:53]} {[%emt 00:01:27]} 6. cxd5 {[%clk 01:26:59]} {[%emt
00:00:08]} exd5 {[%clk 01:28:06]} {[%emt 00:00:17]} 7. e3 {[%clk 01:27:21]}
{[%emt 00:00:08]} Ne4 {[%clk 01:27:38]} {[%emt 00:00:57]} 8. Qc2 {[%clk
01:25:53]} {[%emt 00:01:58]} g5 {[%clk 01:27:58]} {[%emt 00:00:10]} 9. Be5
{[%clk 01:26:15]} {[%emt 00:00:08]} Nxe5 {[%clk 01:27:45]} {[%emt 00:00:42]} 10.
Nxe5 {[%clk 01:26:20]} {[%emt 00:00:26]} c6 {[%clk 01:27:59]} {[%emt 00:00:16]}
11. Bd3 {[%clk 01:25:04]} {[%emt 00:01:46]} f6 {[%clk 01:28:12]} {[%emt
00:00:17]} 12. Nf3 {[%clk 01:24:26]} {[%emt 00:01:07]} Qe7 {[%clk 01:28:17]}
{[%emt 00:00:25]} 13. O-O {[%clk 01:19:53]} {[%emt 00:05:04]} Bf5 {[%clk
01:28:02]} {[%emt 00:00:45]} 14. Rfe1 {[%clk 00:59:28]} {[%emt 00:20:55]} Bg6
{[%clk 01:21:34]} {[%emt 00:06:58]} 15. a3 {[%clk 00:56:53]} {[%emt 00:03:05]}
Bd6 {[%clk 01:16:44]} {[%emt 00:05:19]} 16. Nd2 {[%clk 00:46:54]} {[%emt
00:10:29]} f5 {[%clk 01:09:52]} {[%emt 00:07:22]} 17. f3 {[%clk 00:40:40]}
{[%emt 00:06:44]} Nxd2 {[%clk 01:10:16]} {[%emt 00:00:06]} 18. Qxd2 {[%clk
00:41:08]} {[%emt 00:00:03]} O-O-O {[%clk 01:00:59]} {[%emt 00:09:46]} 19. Qc2
{[%clk 00:33:59]} {[%emt 00:07:39]} Rhf8 {[%clk 00:50:37]} {[%emt 00:10:51]} 20.
e4 {[%clk 00:26:45]} {[%emt 00:07:44]} dxe4 {[%clk 00:48:51]} {[%emt 00:02:16]}
21. fxe4 {[%clk 00:27:10]} {[%emt 00:00:05]} Bc7 {[%clk 00:47:13]} {[%emt
00:02:08]} 22. exf5 {[%clk 00:24:41]} {[%emt 00:02:59]} Qd6 {[%clk 00:47:37]}
{[%emt 00:00:06]} 23. g3 {[%clk 00:24:13]} {[%emt 00:00:58]} Qxd4+ {[%clk
00:47:54]} {[%emt 00:00:12]} 24. Kh1 {[%clk 00:22:55]} {[%emt 00:01:48]} Bh5
{[%clk 00:32:16]} {[%emt 00:16:07]} 25. Be2 {[%clk 00:19:27]} {[%emt 00:03:59]}
Qf2 {[%clk 00:31:03]} {[%emt 00:01:43]} 26. Qe4 {[%clk 00:17:08]} {[%emt
00:02:48]} Rfe8 {[%clk 00:19:28]} {[%emt 00:12:05]} 27. Qg2 {[%clk 00:16:27]}
{[%emt 00:01:11]} Qxg2+ {[%clk 00:18:45]} {[%emt 00:01:13]} 28. Kxg2 {[%clk
00:16:55]} {[%emt 00:00:02]} Rd2 {[%clk 00:19:10]} {[%emt 00:00:05]} 29. Kf1
{[%clk 00:16:44]} {[%emt 00:00:41]} Bf7 {[%clk 00:19:18]} {[%emt 00:00:22]} 30.
Rab1 {[%clk 00:14:50]} {[%emt 00:02:24]} Bb6 {[%clk 00:12:35]} {[%emt
00:07:13]} 31. Red1 {[%clk 00:12:53]} {[%emt 00:02:27]} Rc2 {[%clk 00:13:00]}
{[%emt 00:00:05]} 32. Rdc1 {[%clk 00:12:25]} {[%emt 00:00:58]} Bb3 {[%clk
00:13:22]} {[%emt 00:00:08]} 33. Ke1 {[%clk 00:05:50]} {[%emt 00:07:05]} Bd4
{[%clk 00:09:04]} {[%emt 00:04:48]} 34. Kf1 {[%clk 00:03:23]} {[%emt 00:02:57]}
Rd2 {[%clk 00:08:57]} {[%emt 00:00:37]} 35. Re1 {[%clk 00:03:24]} {[%emt
00:00:29]} Bc2 {[%clk 00:08:58]} {[%emt 00:00:29]} 0-1

[Event "IV Elllobregat Open Chess Tmnt"]
[Site "Sant Boi de Llobregat, Spain"]
[Date "2023.12.03"]
[Round "4.12"]
[White "Alsina Leal, Daniel"]
[Black "Rozen, Eytan"]
[Result "1/2-1/2"]
[TimeControl "90min/40moves + 15min/end + 30sec from move 1"]
[WhiteFideId "2252627"]
[BlackFideId "2816750"]
[WhiteElo "2533"]
[BlackElo "2451"]

1. e4 {[%clk 01:27:43]} {[%emt 00:03:15]} c6 {[%clk 01:30:24]} {[%emt
00:00:36]} 2. d4 {[%clk 01:27:59]} {[%emt 00:00:15]} d5 {[%clk 01:30:49]}
{[%emt 00:00:04]} 3. exd5 {[%clk 01:28:17]} {[%emt 00:00:12]} cxd5 {[%clk
01:31:13]} {[%emt 00:00:06]} 4. c4 {[%clk 01:28:33]} {[%emt 00:00:14]} Nf6
{[%clk 01:31:08]} {[%emt 00:00:35]} 5. Nc3 {[%clk 01:28:53]} {[%emt 00:00:11]}
Nc6 {[%clk 01:31:31]} {[%emt 00:00:06]} 6. Nf3 {[%clk 01:28:50]} {[%emt
00:00:33]} a6 {[%clk 01:30:11]} {[%emt 00:01:50]} 7. c5 {[%clk 01:27:48]}
{[%emt 00:01:33]} Bg4 {[%clk 01:29:56]} {[%emt 00:00:45]} 8. Be2 {[%clk
01:27:52]} {[%emt 00:00:26]} g6 {[%clk 01:29:27]} {[%emt 00:00:58]} 9. O-O
{[%clk 01:26:25]} {[%emt 00:01:57]} Bg7 {[%clk 01:27:28]} {[%emt 00:02:29]} 10.
Be3 {[%clk 01:26:25]} {[%emt 00:00:29]} e6 {[%clk 01:25:46]} {[%emt 00:02:12]}
11. b4 {[%clk 01:13:50]} {[%emt 00:13:06]} Ne4 {[%clk 01:20:47]} {[%emt
00:05:28]} 12. Nxe4 {[%clk 01:06:45]} {[%emt 00:07:36]} dxe4 {[%clk 01:21:08]}
{[%emt 00:00:09]} 13. Nd2 {[%clk 01:06:45]} {[%emt 00:00:29]} Bxe2 {[%clk
01:20:51]} {[%emt 00:00:48]} 14. Qxe2 {[%clk 01:07:10]} {[%emt 00:00:05]} Nxd4
{[%clk 01:18:31]} {[%emt 00:02:50]} 15. Bxd4 {[%clk 01:07:15]} {[%emt
00:00:26]} Qxd4 {[%clk 01:18:52]} {[%emt 00:00:08]} 16. Nxe4 {[%clk 01:01:18]}
{[%emt 00:06:27]} O-O {[%clk 01:19:13]} {[%emt 00:00:08]} 17. Rab1 {[%clk
00:58:40]} {[%emt 00:03:09]} Qe5 {[%clk 01:12:31]} {[%emt 00:07:12]} 18. Qf3
{[%clk 00:57:18]} {[%emt 00:01:52]} Qc7 {[%clk 01:09:37]} {[%emt 00:03:20]} 19.
Rfd1 {[%emt 00:05:15]} Be5 {[%emt 00:09:06]} 20. h4 {[%clk 00:48:51]} {[%emt
00:03:39]} Qe7 {[%clk 00:57:39]} {[%emt 00:04:29]} 21. g3 {[%emt 00:06:41]}
Rad8 {[%emt 00:05:57]} 22. Rxd8 {[%clk 00:28:09]} {[%emt 00:13:27]} Rxd8 {[%clk
00:54:08]} {[%emt 00:00:08]} 23. Rd1 {[%clk 00:28:33]} {[%emt 00:00:06]} Rd5
{[%clk 00:51:29]} {[%emt 00:03:09]} 24. Rxd5 {[%clk 00:23:53]} {[%emt
00:05:10]} exd5 {[%clk 00:51:57]} {[%emt 00:00:02]} 25. Nd2 {[%clk 00:23:26]}
{[%emt 00:00:56]} Bd4 {[%clk 00:48:42]} {[%emt 00:03:46]} 26. Kf1 {[%clk
00:19:57]} {[%emt 00:03:59]} Qe6 {[%clk 00:47:23]} {[%emt 00:01:49]} 27. Nb3
{[%clk 00:17:03]} {[%emt 00:03:23]} Be5 {[%clk 00:42:48]} {[%emt 00:05:05]} 28.
Qe3 {[%clk 00:11:11]} {[%emt 00:06:22]} Qh3+ {[%clk 00:39:46]} {[%emt
00:03:32]} 29. Ke1 {[%clk 00:07:28]} {[%emt 00:04:13]} Bf6 {[%clk 00:38:14]}
{[%emt 00:02:02]} 30. Qf3 {[%clk 00:06:11]} {[%emt 00:01:47]} Qe6+ {[%clk
00:38:31]} {[%emt 00:00:12]} 31. Kf1 {[%clk 00:05:48]} {[%emt 00:00:54]} Kg7
{[%clk 00:36:14]} {[%emt 00:02:47]} 32. Na5 {[%clk 00:04:28]} {[%emt 00:01:50]}
Qd7 {[%clk 00:35:30]} {[%emt 00:01:14]} 33. Kg2 {[%clk 00:03:43]} {[%emt
00:01:15]} h5 {[%clk 00:33:21]} {[%emt 00:02:40]} 34. Qf4 {[%clk 00:03:05]}
{[%emt 00:01:08]} d4 {[%clk 00:32:32]} {[%emt 00:01:19]} 35. Qd6 {[%clk
00:02:20]} {[%emt 00:01:15]} Qf5 {[%clk 00:32:27]} {[%emt 00:00:34]} 36. Qf4
{[%emt 00:03:15]} Qd7 {[%clk 00:19:32]} {[%emt 00:12:26]} 37. Qd6 {[%clk
00:01:00]} {[%emt 00:00:05]} Qf5 {[%clk 00:16:41]} {[%emt 00:03:20]} 38. Qf4
{[%clk 00:01:28]} {[%emt 00:00:02]} Qd7 {[%clk 00:16:30]} {[%emt 00:00:41]}
1/2-1/2